bitfinex/quotes_SOLUSD_20250518
["timestamp","ask_amount","ask_price","bid_price","bid_amount"]
[1747538978368,35.02294964,166.65,166.6,10.37264908]
[1747538978565,6.0006517,166.65,166.61,10.37264908]
[1747538979460,6.0006517,166.65,166.62,10.37264908]
[1747538980566,6.0006517,166.65,166.59,6.0024781]
[1747538980736,6.0006517,166.65,166.62,10.37264908]
[1747538980937,18.64964886,166.64,166.57,7.9194]
[1747538981140,18.64964886,166.64,166.6,10.37264908]
[1747538981956,29.02229794,166.64,166.59,10.37264908]
[1747538982155,6.00132029,166.63,166.59,10.37264908]
[1747538982360,6.00088636,166.65,166.62,10.37264908]
[1747538983254,6.00088636,166.65,166.57,13.92261946]
[1747538983255,6.00088636,166.65,166.61,10.37264908]
[1747538985167,50.02468445,166.65,166.57,7.9194]
[1747538985363,29.02229794,166.64,166.59,10.37264908]
[1747538986447,167.22229794,166.63,166.57,18.29204908]
[1747538986647,29.02229794,166.61,166.56,10.37264908]
[1747538986950,29.02229794,166.61,166.52,7.7569]
[1747538986951,18.64964886,166.61,166.57,10.37264908]
[1747538987372,6.00240096,166.6,166.57,10.37264908]
[1747538988875,6.00240096,166.6,166.52,13.76212548]
[1747538989063,6.00240096,166.6,166.57,10.37264908]
[1747538990250,157.2,166.63,166.57,10.37264908]
[1747538990575,6.00168047,166.62,166.59,10.37264908]
[1747538992270,6.00168047,166.62,166.55,6.00412335]
[1747538992463,6.00168047,166.62,166.59,10.37264908]
[1747538996956,6.00168047,166.62,166.58,10.37264908]
[1747538997459,6.00168047,166.62,166.59,10.37264908]
[1747538998083,6.00168047,166.62,166.58,10.37264908]
[1747538998377,6.00168047,166.62,166.59,10.37264908]
[1747538998954,6.00168047,166.62,166.6,10.37264908]
[1747539004160,163.20139891,166.63,166.6,10.37264908]
[1747539004689,144.20139891,166.63,166.6,10.37264908]
[1747539005080,144.20139891,166.63,166.57,12.28536375]
[1747539005081,26.0,166.64,166.61,10.37264908]
[1747539005381,39.79499261,166.65,166.63,10.37264908]
[1747539007372,33.79427803,166.65,166.64,10.37264908]
[1747539011264,33.79427803,166.65,166.64,16.37360923]
[1747539011577,5.99833305,166.72,166.64,16.37360923]
[1747539011776,4.31087129,166.73,166.71,10.37264908]
[1747539012085,4.31087129,166.73,166.72,10.37264908]
[1747539013590,15.0235208,166.78,166.72,10.37264908]
[1747539013765,5.99654779,166.77,166.75,10.37264908]
[1747539013964,15.0235208,166.78,166.76,10.37264908]
[1747539013965,21.01948323,166.78,166.76,10.37264908]
[1747539014974,15.0235208,166.78,166.77,10.37264908]
[1747539015171,10.30630115,166.8,166.77,10.37264908]
[1747539015490,10.30630115,166.8,166.78,10.37264908]
[1747539015890,4.31087129,166.8,166.79,10.37264908]
[1747539016191,18.64964886,166.83,166.79,10.37264908]
[1747539016192,5.99421199,166.83,166.79,10.37264908]
[1747539016362,5.99421199,166.83,166.8,10.37264908]
[1747539016997,5.99421199,166.83,166.81,10.37264908]
[1747539017201,5.99421199,166.83,166.8,10.37264908]
[1747539018278,35.01650993,166.83,166.76,8.0101]
[1747539018575,35.01650993,166.83,166.78,10.37264908]
[1747539019402,5.99484443,166.81,166.77,10.37264908]
[1747539019982,5.99484443,166.81,166.76,8.0101]
[1747539019983,5.99484443,166.81,166.78,10.37264908]
[1747539020690,5.99484443,166.81,166.79,10.37264908]
[1747539021499,5.99412575,166.83,166.79,10.37264908]
[1747539026905,16.36677483,166.83,166.76,8.0101]
[1747539027098,16.36677483,166.83,166.78,10.37264908]
[1747539027294,31.35208922,166.83,166.76,8.0101]
[1747539027488,31.35208922,166.83,166.78,10.37264908]
[1747539028507,20.97944014,166.83,166.78,10.37264908]
[1747539028805,20.97944014,166.83,166.79,10.37264908]
[1747539029381,20.97944014,166.83,166.78,10.37264908]
[1747539031016,20.97944014,166.83,166.76,8.0101]
[1747539031309,20.97944014,166.83,166.78,10.37264908]
[1747539033407,20.97944014,166.83,166.79,10.37264908]
[1747539033712,20.97944014,166.83,166.78,10.37264908]
[1747539034203,0.07824355,166.8,166.79,10.37264908]
[1747539034685,20.97944014,166.83,166.79,10.37264908]
[1747539036009,14.98531439,166.83,166.79,10.37264908]
[1747539037085,20.97944014,166.83,166.79,10.37264908]
[1747539039415,5.99412575,166.83,166.79,10.37264908]
[1747539039597,144.19372654,166.85,166.82,10.37264908]
[1747539040316,14.98049728,166.89,166.83,10.37264908]
[1747539040516,5.99232981,166.88,166.84,10.37264908]
[1747539041319,5.99232981,166.88,166.85,10.37264908]
[1747539043425,5.99202937,166.89,166.86,10.37264908]
[1747539043619,18.64964886,166.9,166.88,10.37264908]
[1747539043620,5.99169365,166.9,166.88,10.37264908]
[1747539043789,144.19137482,166.91,166.83,5.99410858]
[1747539043995,144.19137482,166.91,166.89,10.37264908]
[1747539044503,138.2,166.91,166.9,10.37264908]
[1747539045125,144.19125277,166.91,166.9,10.37264908]
[1747539045427,144.19125277,166.91,166.89,10.37264908]
[1747539046198,144.19125277,166.91,166.87,10.37264908]
[1747539048026,144.19125277,166.91,166.88,10.37264908]
[1747539049801,144.19125277,166.91,166.86,10.37264908]
[1747539049802,159.16938469,166.91,166.86,10.37264908]
[1747539050310,169.54203377,166.91,166.86,10.37264908]
[1747539050497,169.54203377,166.91,166.84,10.37264908]
[1747539050498,10.37264908,166.89,166.84,10.37264908]
[1747539051837,5.99232981,166.88,166.84,10.37264908]
[1747539052204,27.626,166.92,166.82,8.1352]
[1747539052205,2.40348851,167.02,166.9,26.0]
[1747539052405,111.81747739,167.05,167.01,20.74529816]
[1747539052632,92.63047389,167.07,167.03,20.74529816]
[1747539052923,111.91182512,167.11,167.08,26.0]
[1747539053127,111.91182512,167.11,167.1,26.0]
[1747539053438,29.84363492,167.31,167.1,63.23253813]
[1747539053649,5.97621466,167.33,167.28,10.37264908]
[1747539053845,35.89271442,167.33,167.27,21.94]
[1747539054131,29.9311235,167.34,167.27,21.94]
[1747539054352,29.9311235,167.34,167.33,1.31e-06]
[1747539054518,8.510156,167.35,167.33,10.37264908]
[1747539054922,8.510156,167.35,167.34,23.1]
[1747539055118,8.510156,167.35,167.3,26.0]
[1747539055306,14.48569326,167.35,167.34,26.0]
[1747539055633,8.510156,167.35,167.29,29.03060889]
[1747539055844,8.510156,167.35,167.29,45.48528454]
[1747539056132,26.0,167.34,167.3,45.77710044]
[1747539056340,26.0,167.34,167.31,46.18108645]
[1747539056549,31.97585753,167.34,167.29,29.03060889]
[1747539056721,26.0,167.33,167.31,29.7264108]
[1747539056916,1e-08,167.32,167.31,29.7264108]
[1747539057232,16.45467565,167.32,167.3,3.34339886]
[1747539057445,16.45467565,167.31,167.3,3.34339886]
[1747539057638,18.64964886,167.36,167.31,3.34339886]
[1747539057813,16.45467565,167.32,167.31,3.34339886]
[1747539058212,1.5271,167.32,167.31,3.34339886]
[1747539058425,17.98177565,167.32,167.22,29.46495872]
[1747539058632,16.45467565,167.31,167.28,29.74550563]
[1747539058953,26.0,167.28,167.27,16.45467564]
[1747539059121,42.45467565,167.28,167.27,16.45467564]
[1747539059634,42.45467565,167.28,167.27,14.78807564]
[1747539059835,48.4326766,167.28,167.27,14.78807564]
[1747539060019,67.08232546,167.28,167.27,14.78807564]
[1747539060221,67.08232546,167.28,167.27,3.31556545]
[1747539060617,31.97800095,167.28,167.27,3.31556545]
[1747539060819,31.97800095,167.28,167.27,39.53546227]
[1747539061507,5.97800095,167.28,167.27,65.99013792]
[1747539061836,5.97800095,167.28,167.27,49.53546227]
[1747539062942,22.44645068,167.28,167.27,49.53546227]
[1747539063520,5.97800095,167.28,167.27,49.53546227]
[1747539064138,5.97764361,167.29,167.27,49.45721872]
[1747539064445,22.44609334,167.29,167.27,49.45721872]
[1747539064639,22.44609334,167.29,167.28,9.02743707]
[1747539065220,5.97764361,167.29,167.28,19.02743707]
[1747539066139,20.9197099,167.31,167.28,17.36155364]
[1747539066350,20.9197099,167.31,167.29,10.0]
[1747539067921,67.27280489,167.31,167.25,10.0]
[1747539068122,16.46844973,167.26,167.23,14.14532168]
[1747539068351,88.47562486,167.31,167.24,10.0]
[1747539068523,16.46844973,167.25,167.24,10.0]
[1747539069466,16.46844973,167.26,167.24,10.0]
[1747539069832,5.97871577,167.26,167.25,10.0]
[1747539070555,22.4471655,167.26,167.24,10.0]
[1747539070764,16.46844973,167.25,167.24,10.0]
[1747539071120,16.46844973,167.25,167.23,18.64964886]
[1747539071359,16.46844973,167.24,167.23,18.64964886]
[1747539071658,16.46844973,167.24,167.23,28.64964886]
[1747539071864,22.44788048,167.24,167.23,28.64964886]
[1747539072170,22.44788048,167.24,167.21,10.0]
[1747539072331,16.46844973,167.22,167.21,10.0]
[1747539072535,16.46844973,167.22,167.2,18.64964886]
[1747539072860,16.46844973,167.21,167.19,4.14532168]
[1747539073038,16.46844973,167.21,167.2,10.0]
[1747539073235,16.46844973,167.21,167.19,14.14532168]
[1747539073450,16.46844973,167.22,167.19,28.64964886]
[1747539073663,16.46844973,167.22,167.2,10.0]
[1747539073866,16.46844973,167.22,167.19,28.64964886]
[1747539074033,5.98050355,167.21,167.2,10.0]
[1747539074357,5.98050355,167.21,167.2,28.64964886]
[1747539075056,5.98050355,167.21,167.2,18.64964886]
[1747539077453,5.98050355,167.21,167.2,31.9671224]
[1747539078754,5.98050355,167.21,167.2,3.31747354]
[1747539078755,22.44895328,167.21,167.2,3.31747354]
[1747539079940,26.0,167.18,167.14,10.0]
[1747539080141,22.45110004,167.15,167.14,10.0]
[1747539080447,22.45110004,167.15,167.14,28.64964886]
[1747539080957,5.98265031,167.15,167.14,28.64964886]
[1747539081760,5.98265031,167.15,167.14,31.97708504]
[1747539082359,5.98229241,167.16,167.15,28.64964886]
[1747539082733,5.98229241,167.16,167.15,31.97708504]
[1747539084563,14.95470103,167.18,167.15,31.97708504]
[1747539084863,14.95470103,167.18,167.17,10.0]
[1747539085864,20.93627777,167.18,167.17,10.0]
[1747539086242,20.93627777,167.18,167.17,13.32743618]
[1747539087159,37.4047275,167.18,167.17,3.32743618]
[1747539088542,63.4047275,167.18,167.17,3.32743618]
[1747539088974,63.4047275,167.18,167.14,10.0]
[1747539089173,16.46844973,167.15,167.14,10.0]
[1747539089473,42.46844973,167.15,167.11,18.64964886]
[1747539089670,16.46844973,167.12,167.11,18.64964886]
[1747539089861,5.98372426,167.12,167.11,28.64964886]
[1747539090060,22.45217399,167.12,167.11,28.64964886]
[1747539090777,22.45217399,167.12,167.11,18.64964886]
[1747539091663,37.41148466,167.12,167.09,18.64964886]
[1747539091973,22.45289018,167.1,167.09,18.64964886]
[1747539092159,16.46844973,167.09,167.07,12.01341927]
[1747539092474,5.98444045,167.1,167.07,7.86809759]
[1747539092475,39.18844973,167.08,167.07,7.86809759]
[1747539092981,22.72,167.08,167.06,7.86809759]
[1747539093182,39.18844973,167.08,167.07,7.86809759]
[1747539094084,45.17360654,167.08,167.07,26.51774645]
[1747539095076,45.17360654,167.08,167.07,18.64964886]
[1747539095377,45.17360654,167.08,167.07,26.51774645]
[1747539096582,45.17360654,167.08,167.07,7.86809759]
[1747539096784,45.17360654,167.08,167.06,7.86809759]
[1747539096964,28.70515681,167.08,167.07,7.86809759]
[1747539097284,45.17360654,167.08,167.07,7.86809759]
[1747539097463,45.17360654,167.08,167.04,7.86809759]
[1747539097669,43.66804883,167.08,167.07,7.86809759]
[1747539097867,43.66804883,167.08,167.04,7.86809759]
[1747539098085,43.66804883,167.08,167.07,7.86809759]
[1747539098374,43.66804883,167.08,167.07,26.51774645]
[1747539098756,60.13649856,167.08,167.07,26.51774645]
[1747539099578,60.13649856,167.08,167.07,18.64964886]
[1747539099785,60.13649856,167.08,167.05,26.51774645]
[1747539100084,16.46844973,167.07,167.05,18.64964886]
[1747539100278,16.46844973,167.07,167.05,26.51774645]
[1747539100469,16.46844973,167.07,167.05,18.64964886]
[1747539100985,16.46844973,167.06,167.05,18.64964886]
[1747539102184,5.98623166,167.05,167.04,18.64964886]
[1747539102375,5.98623166,167.05,167.04,26.51774645]
[1747539104388,5.98551505,167.07,167.04,26.51774645]
[1747539104586,5.98551505,167.07,167.06,7.86809759]
[1747539107283,39.18844973,167.1,167.08,7.86809759]
[1747539108379,22.45324834,167.09,167.08,7.86809759]
[1747539108695,22.45324834,167.09,167.07,7.86809759]
[1747539109065,16.46844973,167.08,167.07,26.51774645]
[1747539109998,16.46844973,167.08,167.04,18.64964886]
[1747539110201,16.46844973,167.05,167.04,18.64964886]
[1747539110496,22.45468139,167.05,167.04,18.64964886]
[1747539111294,22.45468139,167.05,167.03,7.86809759]
[1747539111896,22.45468139,167.05,167.02,26.51774645]
[1747539112507,22.45468139,167.05,167.03,7.86809759]
[1747539112803,22.45468139,167.05,167.02,26.51774645]
[1747539113001,16.46844973,167.04,167.02,26.51774645]
[1747539113175,16.46844973,167.04,167.02,18.64964886]
[1747539113495,16.46844973,167.04,167.02,26.51774645]
[1747539113885,16.46844973,167.04,167.02,18.64964886]
[1747539114707,5.98694845,167.03,167.02,26.51774645]
[1747539114890,5.98694845,167.03,167.02,18.64964886]
[1747539116203,5.98694845,167.03,167.01,7.86809759]
[1747539116204,22.45539818,167.03,167.01,7.86809759]
[1747539116503,16.46844973,167.02,166.99,18.64964886]
[1747539116696,16.46844973,167.0,166.96,7.86809759]
[1747539117006,16.46844973,166.99,166.97,18.64964886]
[1747539117702,5.98874116,166.98,166.97,18.64964886]
[1747539118084,5.98874116,166.98,166.96,7.86809759]
[1747539118802,5.98874116,166.98,166.95,26.51774645]
[1747539119017,22.45719089,166.98,166.97,7.86809759]
[1747539119503,22.45719089,166.98,166.95,7.86809759]
[1747539119687,16.46844973,166.97,166.95,18.64964886]
[1747539120014,5.98945855,166.96,166.95,26.51774645]
[1747539120505,5.98945855,166.96,166.95,18.64964886]
[1747539120804,5.98945855,166.96,166.95,26.51774645]
[1747539122001,22.45754956,166.97,166.94,7.86809759]
[1747539122202,16.46844973,166.96,166.93,18.64964886]
[1747539122407,16.46844973,166.96,166.93,26.51774645]
[1747539123393,37.43029915,166.97,166.93,26.51774645]
[1747539123709,16.46844973,166.96,166.93,26.51774645]
[1747539124210,5.98981731,166.95,166.93,18.64964886]
[1747539125415,10.33428789,166.96,166.93,18.64964886]
[1747539126712,5.98981731,166.95,166.93,18.64964886]
[1747539126916,16.3241052,166.95,166.93,18.64964886]
[1747539132320,16.3241052,166.95,166.92,7.86809759]
[1747539132505,16.3241052,166.95,166.86,1.5712]
[1747539132506,10.33428789,166.93,166.91,7.86809759]
[1747539132828,10.33428789,166.93,166.9,26.51774645]
[1747539133834,5.99125277,166.91,166.9,18.64964886]
[1747539135726,5.99125277,166.91,166.9,26.51774645]
[1747539139447,5.99125277,166.91,166.9,18.64964886]
[1747539139620,5.99089384,166.92,166.9,26.51774645]
[1747539140012,16.32518173,166.92,166.9,26.51774645]
[1747539141942,16.32518173,166.92,166.91,26.51774645]
[1747539142239,5.99089384,166.92,166.91,26.51774645]
[1747539144835,5.99053495,166.93,166.92,26.51774645]
[1747539152149,5.99017611,166.94,166.92,26.51774645]
[1747539152349,5.99017611,166.94,166.93,26.51774645]
[1747539152853,5.98909983,166.97,166.96,26.51774645]
[1747539154229,20.95808383,167.0,166.99,26.51774645]
[1747539155062,5.98802395,167.0,166.99,26.51774645]
[1747539156150,5.9876654,167.01,166.99,26.51774645]
[1747539156350,5.9876654,167.01,167.0,7.86809759]
[1747539156546,5.9876654,167.01,167.0,26.51774645]
[1747539157560,77.87079111,167.06,167.05,7.86809759]
[1747539157762,83.85666444,167.06,167.05,7.86809759]
[1747539157951,94.19095233,167.06,167.05,7.86809759]
[1747539158938,94.19095233,167.06,167.04,7.86809759]
[1747539159140,10.33428789,167.05,167.03,7.86809759]
[1747539159339,10.33428789,167.04,167.02,18.64964886]
[1747539159564,10.33428789,167.03,167.02,26.51774645]
[1747539160563,16.32123634,167.03,167.02,26.51774645]
[1747539160855,16.32123634,167.03,167.01,7.86809759]
[1747539161040,5.98694845,167.03,167.02,7.86809759]
[1747539162461,5.98694845,167.03,167.02,26.51774645]
[1747539162646,20.95390985,167.04,167.02,26.51774645]
[1747539163673,20.95390985,167.04,167.03,7.86809759]
[1747539165488,31.28819774,167.04,167.03,7.86809759]
[1747539165666,31.28819774,167.04,167.02,7.86809759]
[1747539165847,10.33428789,167.03,167.02,18.64964886]
[1747539166044,10.33428789,167.03,167.01,18.64964886]
[1747539166261,10.33428789,167.02,167.01,26.51774645]
[1747539166488,10.33428789,167.02,167.0,7.86809759]
[1747539166649,10.33428789,167.01,166.99,7.86809759]
[1747539166849,10.33428789,167.0,166.99,7.86809759]
[1747539167073,10.33428789,167.0,166.97,7.86809759]
[1747539167253,10.33428789,166.99,166.97,7.86809759]
[1747539167449,16.32302905,166.98,166.97,26.51774645]
[1747539167688,16.32302905,166.98,166.96,26.51774645]
[1747539167849,10.33428789,166.97,166.96,26.51774645]
[1747539168058,10.33428789,166.97,166.95,12.1176983]
[1747539168362,10.33428789,166.96,166.95,30.76734716]
[1747539168662,10.33428789,166.96,166.95,4.24960071]
[1747539168875,10.33428789,166.96,166.95,12.1176983]
[1747539169778,16.32374644,166.96,166.94,7.86809759]
[1747539170257,16.32374644,166.96,166.95,7.86809759]
[1747539171273,5.98945855,166.96,166.95,7.86809759]
[1747539171870,5.98874116,166.98,166.97,26.51774645]
[1747539175087,16.32302905,166.98,166.97,26.51774645]
[1747539177680,16.32302905,166.98,166.96,7.86809759]
[1747539177887,10.33428789,166.97,166.96,26.51774645]
[1747539178962,16.32302905,166.98,166.97,7.86809759]
[1747539179286,16.32302905,166.98,166.97,26.51774645]
[1747539179883,5.98874116,166.98,166.97,26.51774645]
[1747539180589,16.32302905,166.98,166.97,26.51774645]
[1747539181626,16.32302905,166.98,166.96,7.86809759]
[1747539181792,5.98874116,166.98,166.97,7.86809759]
[1747539181965,10.33428789,166.98,166.96,7.86809759]
[1747539182293,10.33428789,166.97,166.96,7.86809759]
[1747539184194,16.32338772,166.97,166.96,7.86809759]
[1747539184386,5.98909983,166.97,166.96,7.86809759]
[1747539187781,14.97180151,166.99,166.98,26.51774645]
[1747539188889,5.98802395,167.0,166.99,26.51774645]
[1747539189697,68.8670914,167.01,166.99,26.51774645]
[1747539189903,68.8670914,167.01,167.0,26.51774645]
[1747539190406,62.87941419,167.01,167.0,28.74850072]
[1747539192404,62.87941419,167.01,167.0,32.17360214]
[1747539192592,39.10941419,167.01,167.0,32.17360214]
[1747539192780,5.98515681,167.08,167.07,26.51774645]
[1747539194002,16.3194447,167.08,167.07,7.86809759]
[1747539194174,5.98515681,167.08,167.07,7.86809759]
[1747539195006,16.3194447,167.08,167.07,7.86809759]
[1747539195171,5.98515681,167.08,167.07,7.86809759]
[1747539195375,16.3194447,167.08,167.07,7.86809759]
[1747539198309,5.98515681,167.08,167.07,7.86809759]
[1747539199807,16.3194447,167.08,167.07,7.86809759]
[1747539201415,16.3194447,167.08,167.06,7.86809759]
[1747539201709,10.33428789,167.07,167.06,7.86809759]
[1747539202911,10.33428789,167.07,167.05,7.86809759]
[1747539203083,10.33428789,167.06,167.05,7.86809759]
[1747539203488,16.32016122,167.06,167.05,7.86809759]
[1747539204613,16.32016122,167.06,167.04,7.86809759]
[1747539205116,10.33428789,167.05,167.04,7.86809759]
[1747539205697,10.33428789,167.05,167.03,7.86809759]
[1747539205915,10.33428789,167.04,167.02,7.86809759]
[1747539206090,26.0,167.07,167.02,7.86809759]
[1747539206091,10.33428789,167.03,167.02,7.86809759]
[1747539206692,10.33428789,167.03,167.01,7.86809759]
[1747539207192,26.0,167.07,167.0,18.64964886]
[1747539207193,16.32159479,167.02,167.0,7.86809759]
[1747539207495,10.33428789,167.01,166.98,7.86809759]
[1747539207709,10.33428789,166.99,166.98,7.86809759]
[1747539209322,5.98838253,166.99,166.98,26.51774645]
[1747539209796,16.32267042,166.99,166.97,7.86809759]
[1747539209994,16.32267042,166.99,166.98,7.86809759]
[1747539210618,5.98838253,166.99,166.98,7.86809759]
[1747539210821,16.32267042,166.99,166.98,7.86809759]
[1747539211032,5.98838253,166.99,166.98,7.86809759]
[1747539212128,10.33428789,166.99,166.98,7.86809759]
[1747539213112,10.33428789,166.99,166.97,7.86809759]
[1747539213410,10.33428789,166.99,166.97,18.64964886]
[1747539214328,16.32302905,166.98,166.96,7.86809759]
[1747539214513,10.33428789,166.97,166.96,7.86809759]
[1747539216609,5.98909983,166.97,166.96,7.86809759]
[1747539217916,16.32338772,166.97,166.96,7.86809759]
[1747539218629,31.29613731,166.97,166.91,26.51774645]
[1747539218808,10.33428789,166.93,166.92,7.86809759]
[1747539219208,10.33428789,166.93,166.91,7.86809759]
[1747539219518,10.33428789,166.93,166.87,22.1931]
[1747539219519,10.33428789,166.93,166.92,7.86809759]
[1747539219720,10.33428789,166.93,166.91,18.64964886]
[1747539219913,10.33428789,166.93,166.91,26.51774645]
[1747539220312,10.33428789,166.92,166.91,26.51774645]
[1747539220623,5.99125277,166.91,166.9,7.86809759]
[1747539220821,16.32554066,166.91,166.9,7.86809759]
[1747539221434,16.32554066,166.91,166.89,7.86809759]
[1747539221631,16.32554066,166.91,166.9,7.86809759]
[1747539222838,16.32554066,166.91,166.89,7.86809759]
[1747539223137,10.33428789,166.9,166.88,26.51774645]
[1747539224507,10.33428789,166.89,166.88,7.86809759]
[1747539224710,10.33428789,166.89,166.87,7.86809759]
[1747539224931,10.33428789,166.88,166.87,26.51774645]
[1747539225228,10.33428789,166.88,166.87,7.86809759]
[1747539226030,10.33428789,166.88,166.86,7.86809759]
[1747539226221,10.33428789,166.87,166.86,7.86809759]
[1747539226920,16.3269768,166.87,166.86,7.86809759]
[1747539229931,31.30869909,166.87,166.82,26.51774645]
[1747539230230,10.33428789,166.84,166.82,26.51774645]
[1747539230534,10.33428789,166.83,166.82,7.86809759]
[1747539230828,10.33428789,166.83,166.8,26.51774645]
[1747539231137,10.33428789,166.82,166.79,7.86809759]
[1747539231316,10.33428789,166.81,166.79,7.86809759]
[1747539231514,10.33428789,166.81,166.78,26.51774645]
[1747539231722,5.99520383,166.8,166.78,26.51774645]
[1747539231938,16.32949172,166.8,166.79,26.51774645]
[1747539232115,16.32949172,166.8,166.79,18.64964886]
[1747539232318,16.32949172,166.8,166.78,7.86809759]
[1747539232633,5.99520383,166.8,166.78,7.86809759]
[1747539232836,5.99520383,166.8,166.79,7.86809759]
[1747539233050,16.32949172,166.8,166.79,7.86809759]
[1747539233338,5.99520383,166.8,166.79,7.86809759]
[1747539234127,16.32949172,166.8,166.79,7.86809759]
[1747539235638,16.32949172,166.8,166.78,7.86809759]
[1747539236134,16.32949172,166.8,166.79,7.86809759]
[1747539236505,16.32949172,166.8,166.78,7.86809759]
[1747539236738,10.33428789,166.79,166.77,7.86809759]
[1747539236924,10.33428789,166.78,166.76,26.51774645]
[1747539237240,10.33428789,166.77,166.74,7.86809759]
[1747539237429,10.33428789,166.75,166.73,7.86809759]
[1747539237734,10.33428789,166.74,166.72,7.86809759]
[1747539238652,5.99772086,166.73,166.72,7.86809759]
[1747539240225,5.99700149,166.75,166.74,7.86809759]
[1747539240726,31.32339977,166.76,166.74,7.86809759]
[1747539241145,10.33428789,166.75,166.73,7.86809759]
[1747539241952,10.33428789,166.75,166.74,7.86809759]
[1747539242141,10.33428789,166.75,166.72,7.86809759]
[1747539242336,10.33428789,166.73,166.71,7.86809759]
[1747539242541,50.97232128,166.76,166.7,7.86809759]
[1747539242542,10.33428789,166.72,166.7,7.86809759]
[1747539242747,16.33272829,166.71,166.67,7.86809759]
[1747539242957,10.33428789,166.69,166.67,7.86809759]
[1747539243939,10.33428789,166.71,166.69,7.86809759]
[1747539244175,5.99772086,166.73,166.72,7.86809759]
[1747539244371,16.33200875,166.73,166.72,7.86809759]
[1747539244934,57.01780412,166.74,166.73,7.86809759]
[1747539245344,67.35209201,166.74,166.73,7.86809759]
[1747539248549,57.01780412,166.74,166.73,7.86809759]
[1747539248947,67.35209201,166.74,166.73,7.86809759]
[1747539252347,57.01780412,166.74,166.73,7.86809759]
[1747539252546,67.35209201,166.74,166.73,7.86809759]
[1747539253765,67.35209201,166.74,166.71,7.86809759]
[1747539253948,10.33428789,166.72,166.71,7.86809759]
[1747539255568,16.3323685,166.72,166.71,7.86809759]
[1747539256364,5.99808061,166.72,166.71,7.86809759]
[1747539256561,51.02039316,166.74,166.72,26.51774645]
[1747539256866,51.02039316,166.74,166.73,26.51774645]
[1747539257665,51.02039316,166.74,166.73,32.51546731]
[1747539257846,5.99459268,166.82,166.74,18.64964886]
[1747539258046,16.32888057,166.82,166.81,7.86809759]
[1747539265577,16.32888057,166.82,166.8,7.86809759]
[1747539265878,10.33428789,166.81,166.77,7.86809759]
[1747539266055,5.99459268,166.82,166.8,7.86809759]
[1747539266244,10.33428789,166.81,166.8,7.86809759]
[1747539266649,10.33428789,166.81,166.77,7.86809759]
[1747539266889,10.33428789,166.79,166.78,7.86809759]
[1747539267761,10.33428789,166.8,166.79,7.86809759]
[1747539268489,5.99412575,166.83,166.82,7.86809759]
[1747539268782,16.32841364,166.83,166.82,7.86809759]
[1747539272992,5.99412575,166.83,166.82,7.86809759]
[1747539273198,36.64815544,166.84,166.83,7.86809759]
[1747539273870,30.65428789,166.84,166.83,7.86809759]
[1747539274889,36.64805437,166.84,166.83,7.86809759]
[1747539275462,36.64805437,166.84,166.81,7.86809759]
[1747539275673,10.33428789,166.82,166.81,7.86809759]
[1747539275881,41.29818268,166.84,166.81,7.86809759]
[1747539276194,10.33428789,166.82,166.81,7.86809759]
[1747539277293,16.32877296,166.82,166.81,7.86809759]
[1747539288690,10.33428789,166.82,166.81,7.86809759]
[1747539288878,26.31381026,166.84,166.83,7.86809759]
[1747539289076,30.65428789,166.84,166.83,7.86809759]
[1747539290473,36.64805437,166.84,166.83,7.86809759]
[1747539292001,26.31376648,166.84,166.83,7.86809759]
[1747539294655,20.32,166.84,166.83,26.51774645]
[1747539294838,26.31376648,166.84,166.83,26.51774645]
[1747539295602,36.64805437,166.84,166.83,7.86809759]
[1747539300204,36.64805437,166.84,166.81,7.86809759]
[1747539300401,36.33428789,166.82,166.78,7.86809759]
[1747539300584,10.33428789,166.79,166.77,7.86809759]
[1747539300901,10.33428789,166.78,166.77,7.86809759]
[1747539301083,26.0,166.82,166.77,7.86809759]
[1747539301084,10.33428789,166.79,166.77,7.86809759]
[1747539301408,10.33428789,166.81,166.8,7.86809759]
[1747539301729,10.33428789,166.82,166.8,7.86809759]
[1747539301908,87.03818268,166.84,166.83,26.51774645]
[1747539301909,10.33428789,166.84,166.83,26.51774645]
[1747539302107,41.9592747,166.86,166.85,7.86809759]
[1747539302993,35.9661339,166.86,166.85,26.51774645]
[1747539303805,35.9661339,166.86,166.85,29.9580191]
[1747539304379,19.72,166.87,166.85,29.9580191]
[1747539304709,16.3259806,166.9,166.88,7.86809759]
[1747539305507,5.99169271,166.9,166.89,7.86809759]
[1747539305697,16.3259806,166.9,166.89,7.86809759]
[1747539314519,5.99135673,166.91,166.89,26.51774645]
[1747539314719,16.32564462,166.91,166.9,7.86809759]
[1747539316522,10.33428789,166.91,166.9,7.86809759]
[1747539316738,36.04527741,166.92,166.91,7.86809759]
[1747539319408,19.72,166.92,166.91,26.51774645]
[1747539319724,16.32506846,166.93,166.91,26.51774645]
[1747539320022,10.33428789,166.92,166.91,26.51774645]
[1747539320721,5.99078057,166.93,166.91,26.51774645]
[1747539320925,16.32518173,166.92,166.91,26.51774645]
[1747539321115,5.99089384,166.92,166.91,26.51774645]
[1747539321801,183.92,166.98,166.92,7.86809759]
[1747539322120,189.90874116,166.98,166.97,7.86809759]